Department Family,Entity,Date,Expense Type,Expense Area,Supplier,Amount in Sterling,System Reference
BEIS,Companies House,04/08/2016,Agency/Contract Staff         ,Accounting                    ,Hays Specialist Recruitment Ltd         ,840.00,561838
BEIS,Companies House,11/08/2016,Agency/Contract Staff         ,Accounting                    ,Hays Specialist Recruitment Ltd         ,840.00,562028
BEIS,Companies House,18/08/2016,Agency/Contract Staff         ,Accounting                    ,Hays Specialist Recruitment Ltd         ,840.00,562294
BEIS,Companies House,23/08/2016,Agency/Contract Staff         ,Digital Services Management   ,Blink Ace Reporting Limited             ,"1,071.87",562285
BEIS,Companies House,02/08/2016,Agency/Contract Staff         ,IT Services                   ,Spring Technology Staffing Services Ltd ,"2,105.86",561711
BEIS,Companies House,10/08/2016,Agency/Contract Staff         ,IT Services                   ,Spring Technology Staffing Services Ltd ,"1,579.39",561977
BEIS,Companies House,10/08/2016,Agency/Contract Staff         ,IT Services                   ,Spring Technology Staffing Services Ltd ,526.46,561978
BEIS,Companies House,17/08/2016,Agency/Contract Staff         ,IT Services                   ,Spring Technology Staffing Services Ltd ,"2,105.86",562217
BEIS,Companies House,23/08/2016,Agency/Contract Staff         ,IT Services                   ,Spring Technology Staffing Services Ltd ,"2,632.32",562390
BEIS,Companies House,04/08/2016,Agency/Contract Staff         ,Product,Capita Resourcing                       ,"2,759.10",561793
BEIS,Companies House,11/08/2016,Agency/Contract Staff         ,Product,Capita Resourcing                       ,"2,759.10",562033
BEIS,Companies House,18/08/2016,Agency/Contract Staff         ,Product,Capita Resourcing                       ,"2,759.10",562303
BEIS,Companies House,25/08/2016,Agency/Contract Staff         ,Product,Capita Resourcing                       ,"2,759.10",562530
BEIS,Companies House,25/08/2016,Agency/Contract Staff         ,Product,Capita Resourcing                       ,"1,103.64",562534
BEIS,Companies House,11/08/2016,Agency/Contract Staff         ,Project Centre                ,Capita Resourcing                       ,"8,254.20",562034
BEIS,Companies House,11/08/2016,Agency/Contract Staff         ,Project Centre                ,Capita Resourcing                       ,"2,993.82",562036
BEIS,Companies House,18/08/2016,Agency/Contract Staff         ,Project Centre                ,Capita Resourcing                       ,"4,127.10",562305
BEIS,Companies House,18/08/2016,Agency/Contract Staff         ,Project Centre                ,Capita Resourcing                       ,"2,993.82",562306
BEIS,Companies House,25/08/2016,Agency/Contract Staff         ,Project Centre                ,Capita Resourcing                       ,"4,127.10",562532
BEIS,Companies House,25/08/2016,Agency/Contract Staff         ,Project Centre                ,Capita Resourcing                       ,"2,993.82",562533
BEIS,Companies House,08/08/2016,Agency/Contract Staff         ,Project Centre                ,Hays Specialist Recruitment Ltd         ,"2,376.00",561903
BEIS,Companies House,31/08/2016,Agency/Contract Staff         ,Project Centre                ,Hays Specialist Recruitment Ltd         ,"2,376.00",562565
BEIS,Companies House,04/08/2016,Agency/Contract Staff         ,Software Engineering          ,Capita Resourcing                       ,"4,059.18",561789
BEIS,Companies House,04/08/2016,Agency/Contract Staff         ,Software Engineering          ,Capita Resourcing                       ,"4,161.35",561790
BEIS,Companies House,04/08/2016,Agency/Contract Staff         ,Software Engineering          ,Capita Resourcing                       ,"4,623.72",561791
BEIS,Companies House,04/08/2016,Agency/Contract Staff         ,Software Engineering          ,Capita Resourcing                       ,"4,688.64",561792
BEIS,Companies House,11/08/2016,Agency/Contract Staff         ,Software Engineering          ,Capita Resourcing                       ,"2,005.34",562032
BEIS,Companies House,11/08/2016,Agency/Contract Staff         ,Software Engineering          ,Capita Resourcing                       ,"1,406.59",562035
BEIS,Companies House,18/08/2016,Agency/Contract Staff         ,Software Engineering          ,Capita Resourcing                       ,"3,698.98",562304
BEIS,Companies House,18/08/2016,Agency/Contract Staff         ,Software Engineering          ,Capita Resourcing                       ,"4,623.72",562307
BEIS,Companies House,25/08/2016,Agency/Contract Staff         ,Software Engineering          ,Capita Resourcing                       ,"2,311.86",562531
BEIS,Companies House,04/08/2016,Agency/Contract Staff         ,Software Engineering          ,FDM GROUP                               ,"6,480.00",561845
BEIS,Companies House,04/08/2016,Agency/Contract Staff         ,Software Engineering          ,FDM GROUP                               ,"5,563.72",561846
BEIS,Companies House,11/08/2016,Agency/Contract Staff         ,Software Engineering          ,Hays Specialist Recruitment Ltd         ,564.00,562005
BEIS,Companies House,11/08/2016,Agency/Contract Staff         ,Software Engineering          ,Hays Specialist Recruitment Ltd         ,"2,820.00",562027
BEIS,Companies House,18/08/2016,Agency/Contract Staff         ,Software Engineering          ,Hays Specialist Recruitment Ltd         ,"2,820.00",562295
BEIS,Companies House,02/08/2016,Agency/Contract Staff         ,Software Engineering          ,Spring Technology Staffing Services Ltd ,"2,632.32",561706
BEIS,Companies House,02/08/2016,Agency/Contract Staff         ,Software Engineering          ,Spring Technology Staffing Services Ltd ,"2,369.09",561710
BEIS,Companies House,02/08/2016,Agency/Contract Staff         ,Software Engineering          ,Spring Technology Staffing Services Ltd ,"2,632.32",561712
BEIS,Companies House,04/08/2016,Agency/Contract Staff         ,Software Engineering          ,Spring Technology Staffing Services Ltd ,"2,105.86",561751
BEIS,Companies House,10/08/2016,Agency/Contract Staff         ,Software Engineering          ,Spring Technology Staffing Services Ltd ,"2,632.32",561979
BEIS,Companies House,17/08/2016,Agency/Contract Staff         ,Software Engineering          ,Spring Technology Staffing Services Ltd ,"2,958.00",562232
BEIS,Companies House,17/08/2016,Agency/Contract Staff         ,Software Engineering          ,Spring Technology Staffing Services Ltd ,"2,958.00",562235
BEIS,Companies House,18/08/2016,Agency/Contract Staff         ,Software Engineering          ,Spring Technology Staffing Services Ltd ,"2,632.32",562288
BEIS,Companies House,19/08/2016,Agency/Contract Staff         ,Software Engineering          ,Spring Technology Staffing Services Ltd ,"2,237.47",562344
BEIS,Companies House,19/08/2016,Agency/Contract Staff         ,Software Engineering          ,Spring Technology Staffing Services Ltd ,"1,776.82",562345
BEIS,Companies House,19/08/2016,Agency/Contract Staff         ,Software Engineering          ,Spring Technology Staffing Services Ltd ,"2,632.32",562346
BEIS,Companies House,19/08/2016,Agency/Contract Staff         ,Software Engineering          ,Spring Technology Staffing Services Ltd ,"2,879.10",562347
BEIS,Companies House,25/08/2016,Agency/Contract Staff         ,Software Engineering          ,Spring Technology Staffing Services Ltd ,"2,958.00",562509
BEIS,Companies House,25/08/2016,Agency/Contract Staff         ,Software Engineering          ,Spring Technology Staffing Services Ltd ,"2,632.32",562510
BEIS,Companies House,25/08/2016,Agency/Contract Staff         ,Software Engineering          ,Spring Technology Staffing Services Ltd ,"2,105.86",562511
BEIS,Companies House,25/08/2016,Agency/Contract Staff         ,Software Engineering          ,Spring Technology Staffing Services Ltd ,"2,105.86",562512
BEIS,Companies House,25/08/2016,Agency/Contract Staff         ,Software Engineering          ,Spring Technology Staffing Services Ltd ,"1,842.62",562513
BEIS,Companies House,25/08/2016,Agency/Contract Staff         ,Software Engineering          ,Spring Technology Staffing Services Ltd ,"2,632.32",562514
BEIS,Companies House,25/08/2016,Agency/Contract Staff         ,Software Engineering          ,Spring Technology Staffing Services Ltd ,"2,958.00",562515
BEIS,Companies House,31/08/2016,Agency/Contract Staff         ,Software Engineering          ,Spring Technology Staffing Services Ltd ,"2,632.32",562592
BEIS,Companies House,04/08/2016,Agency/Contract Staff         ,Software Engineering          ,TRIAD RESOURCING                        ,"16,416.00",561842
BEIS,Companies House,10/08/2016,Auditors Remuneration Accrual ,Accounting                    ,National Audit Office                   ,"12,000.00",561943
BEIS,Companies House,10/08/2016,Auditors Remuneration Accrual ,Accounting                    ,National Audit Office                   ,"36,000.00",561944
BEIS,Companies House,04/08/2016,Belfast Maintenance           ,Northern Ireland              ,Department for Business Innovation Skill,"1,928.87",561749
BEIS,Companies House,31/08/2016,Belfast Maintenance           ,Northern Ireland              ,Department for Business Innovation Skill,"1,928.87",562582
BEIS,Companies House,02/08/2016,C.H. Adjudicator              ,Late Filing Penalties,"Personal Expenses, Name Withheld","2,186.30",561705
BEIS,Companies House,02/08/2016,C.H. Adjudicator              ,Late Filing Penalties,"Personal Expenses, Name Withheld","1,949.58",561708
BEIS,Companies House,08/08/2016,C.H. Adjudicator              ,Late Filing Penalties,"Personal Expenses, Name Withheld","1,840.20",561914
BEIS,Companies House,31/08/2016,C.H. Adjudicator              ,Late Filing Penalties,"Personal Expenses, Name Withheld",975.35,562588
BEIS,Companies House,10/08/2016,CE Additions This Year        ,IT Services                   ,XMA LTD                                 ,"20,278.30",561906
BEIS,Companies House,18/08/2016,CHD Invoice Printing          ,Accounting                    ,DST OUTPUT (LONDON) LTD                 ,"1,792.12",562310
BEIS,Companies House,04/08/2016,Cleaning Contract             ,Building Services             ,Department for Business Innovation Skill,"30,527.03",561749
BEIS,Companies House,31/08/2016,Cleaning Contract             ,Building Services             ,Department for Business Innovation Skill,"30,527.03",562582
BEIS,Companies House,04/08/2016,Cleaning Contract             ,Edinburgh                     ,Department for Business Innovation Skill,567.89,561749
BEIS,Companies House,31/08/2016,Cleaning Contract             ,Edinburgh                     ,Department for Business Innovation Skill,567.89,562582
BEIS,Companies House,04/08/2016,Cleaning Contract             ,Northern Ireland              ,Department for Business Innovation Skill,638.67,561749
BEIS,Companies House,31/08/2016,Cleaning Contract             ,Northern Ireland              ,Department for Business Innovation Skill,638.67,562582
BEIS,Companies House,16/08/2016,Cloud Services                ,Software Engineering          ,Amazon Web Services                     ,"25,498.72",562223
BEIS,Companies House,23/08/2016,Cloud Services                ,Software Engineering          ,Amazon Web Services                     ,671.28,562484
BEIS,Companies House,23/08/2016,Cloud Services                ,Software Engineering          ,Amazon Web Services                     ,671.28,562486
BEIS,Companies House,23/08/2016,Computer Cabling              ,IT Services                   ,P J Telecom Services                    ,980.00,562129
BEIS,Companies House,25/08/2016,Consultants Computer          ,Accounting                    ,Advanced Business Solutions             ,848.47,561204
BEIS,Companies House,15/08/2016,Consultants Computer          ,Accounting                    ,IRM PLC                                 ,"4,750.00",561395
BEIS,Companies House,02/08/2016,Consultants Computer          ,Accounting                    ,NCC GROUP SECURITY                      ,"6,750.00",561717
BEIS,Companies House,15/08/2016,Consultants Computer          ,Accounting                    ,NCC GROUP SECURITY                      ,885.00,562059
BEIS,Companies House,17/08/2016,Consultants Management        ,HR Service delivery           ,Advanced Business Solutions             ,"1,094.80",562227
BEIS,Companies House,11/08/2016,Contact Centre                ,Contact Centre,Serco Limited                           ,"190,574.95",562060
BEIS,Companies House,04/08/2016,Courier Other                 ,Customer Operations Team      ,APOLLO DISTRIBUTION SOLUTIONS LTD       ,540.00,561704
BEIS,Companies House,11/08/2016,Data Tel Bills&ISP managed ser,Procurement                   ,Virgin Media Business                   ,"14,643.93",561961
BEIS,Companies House,25/08/2016,Developing Software           ,Late Filing Penalties,Advanced Business Solutions             ,"3,500.00",561060
BEIS,Companies House,10/08/2016,Distributed Equipment         ,IT Services                   ,Computacenter (GCAT)                    ,"1,734.00",561709
BEIS,Companies House,19/08/2016,E Take up                     ,Communications                ,SIFTMEDIA LIMITED                       ,"13,500.00",562338
BEIS,Companies House,04/08/2016,Edinburgh Maintenance         ,Edinburgh                     ,Department for Business Innovation Skill,"2,050.90",561749
BEIS,Companies House,31/08/2016,Edinburgh Maintenance         ,Edinburgh                     ,Department for Business Innovation Skill,"2,050.90",562582
BEIS,Companies House,10/08/2016,Electricity                   ,Building Services             ,E D F ENERGY CUSTOMERS PLC              ,"41,088.94",561940
BEIS,Companies House,17/08/2016,Electricity                   ,Edinburgh                     ,Scottish Hydro Electric                 ,963.92,562214
BEIS,Companies House,17/08/2016,Electricity                   ,Northern Ireland              ,Power NI                                ,910.37,562215
BEIS,Companies House,25/08/2016,Enforcement,Late Filing Penalties,AKINIKA DEBT RECOVERY LIMITED           ,"12,330.86",562522
BEIS,Companies House,25/08/2016,Enforcement,Late Filing Penalties,AKINIKA DEBT RECOVERY LIMITED           ,"4,142.00",562522
BEIS,Companies House,25/08/2016,Enforcement,Late Filing Penalties,AKINIKA DEBT RECOVERY LIMITED           ,"1,284.70",562522
BEIS,Companies House,31/08/2016,Envelopes                     ,Procurement                   ,PRINT ON SOLUTIONS LTD                  ,"1,246.80",562602
BEIS,Companies House,31/08/2016,Envelopes                     ,Procurement                   ,PRINT ON SOLUTIONS LTD                  ,767.16,562603
BEIS,Companies House,31/08/2016,Envelopes                     ,Procurement                   ,PRINT ON SOLUTIONS LTD                  ,"2,428.50",562604
BEIS,Companies House,10/08/2016,Environmental costs           ,Building Services             ,Air Management Systems (GB) LLP         ,"2,000.00",561908
BEIS,Companies House,19/08/2016,Environmental costs           ,Building Services             ,Air Management Systems (GB) LLP         ,"4,200.00",562337
BEIS,Companies House,17/08/2016,Exhibitions                   ,Customer Services/London      ,NEW START EXHIBITIONS LTD               ,"3,000.00",554169
BEIS,Companies House,10/08/2016,External managed services     ,Development Strategy          ,Epimorphics                             ,"3,244.11",561911
BEIS,Companies House,10/08/2016,External managed services     ,Project Centre                ,Methods Digital Limited                 ,"77,387.50",561941
BEIS,Companies House,18/08/2016,External managed services     ,Project Centre                ,Methods Digital Limited                 ,"10,924.00",561942
BEIS,Companies House,19/08/2016,External managed services     ,Project Centre                ,Methods Digital Limited                 ,"10,449.00",562259
BEIS,Companies House,04/08/2016,External managed services     ,Software Engineering          ,CoreFiling                              ,"26,052.00",561647
BEIS,Companies House,23/08/2016,External managed services     ,Software Engineering          ,NCC Group Plc                           ,"3,300.00",562376
BEIS,Companies House,04/08/2016,External managed services     ,Software Engineering          ,ZETMAN LIMITED                          ,"9,000.00",561752
BEIS,Companies House,17/08/2016,External managed services     ,Software Engineering          ,ZETMAN LIMITED                          ,"4,500.00",562192
BEIS,Companies House,17/08/2016,Gazette Notices               ,CPES                          ,Stationery Office                       ,"7,708.99",562222
BEIS,Companies House,17/08/2016,Gazette Notices               ,CPES                          ,Stationery Office                       ,940.27,562224
BEIS,Companies House,10/08/2016,General Advertising           ,Communications                ,A McLay & Company Ltd                   ,"8,419.13",561839
BEIS,Companies House,10/08/2016,General Advertising           ,Communications                ,A McLay & Company Ltd                   ,"3,241.14",561840
BEIS,Companies House,18/08/2016,General Advertising           ,Communications                ,A McLay & Company Ltd                   ,"6,614.19",562243
BEIS,Companies House,18/08/2016,General Advertising           ,Communications                ,A McLay & Company Ltd                   ,"1,569.80",562244
BEIS,Companies House,19/08/2016,General Advertising           ,Communications                ,A McLay & Company Ltd                   ,672.33,562247
BEIS,Companies House,10/08/2016,Hardware &SoftwareMaintenance ,Procurement                   ,EUROPEAN ELECTRONIQUE LIMITED           ,"47,115.70",561905
BEIS,Companies House,10/08/2016,Hardware &SoftwareMaintenance ,Procurement                   ,EUROPEAN ELECTRONIQUE LIMITED           ,"63,068.88",561909
BEIS,Companies House,18/08/2016,Hardware &SoftwareMaintenance ,Procurement                   ,Grey Matter                             ,790.12,562286
BEIS,Companies House,19/08/2016,Hardware &SoftwareMaintenance ,Procurement                   ,Grey Matter                             ,"2,363.10",562342
BEIS,Companies House,19/08/2016,Hardware &SoftwareMaintenance ,Procurement                   ,Grey Matter                             ,"1,884.17",562343
BEIS,Companies House,23/08/2016,Hardware &SoftwareMaintenance ,Procurement                   ,HEAT SOFTWARE UK LIMITED                ,"31,376.30",562366
BEIS,Companies House,15/08/2016,Hardware &SoftwareMaintenance ,Procurement                   ,HOOTSUITE MEDIA INC                     ,"3,600.00",562126
BEIS,Companies House,17/08/2016,Hardware &SoftwareMaintenance ,Procurement                   ,I B M United Kingdom Ltd                ,"17,791.00",562216
BEIS,Companies House,15/08/2016,Hardware &SoftwareMaintenance ,Procurement                   ,Kodak Alaris Ltd                        ,855.00,562131
BEIS,Companies House,11/08/2016,Hardware &SoftwareMaintenance ,Procurement                   ,Opentext                                ,"19,146.04",561976
BEIS,Companies House,02/08/2016,Hardware &SoftwareMaintenance ,Procurement                   ,QUESTBACK AS                            ,"8,240.00",561713
BEIS,Companies House,08/08/2016,Hardware &SoftwareMaintenance ,Procurement                   ,Software Box Ltd (SBL)                  ,"11,618.40",561886
BEIS,Companies House,17/08/2016,Hospitality                   ,Procurement                   ,Elior UK plc                            ,"1,331.39",562257
BEIS,Companies House,08/08/2016,IDS                           ,Customer Operations Team      ,City Sprint                             ,"2,298.61",561844
BEIS,Companies House,10/08/2016,Information days              ,Communications                ,The Jockey Club Racecources,"1,264.27",561952
BEIS,Companies House,11/08/2016,Internal Audit costs          ,Organisational Overheads      ,GOVERNMENT INTERNAL AUDIT AGENCY        ,"48,750.00",561969
BEIS,Companies House,04/08/2016,Maintenance Contract          ,Building Services             ,Department for Business Innovation Skill,"45,476.63",561749
BEIS,Companies House,31/08/2016,Maintenance Contract          ,Building Services             ,Department for Business Innovation Skill,"45,764.33",562582
BEIS,Companies House,08/08/2016,Micrographics                 ,Customer Services/London      ,Transmedia Technology Ltd               ,"3,008.80",561883
BEIS,Companies House,23/08/2016,Office Furniture              ,Building Services             ,TRIUMPH FURNITURE                       ,"1,635.48",562375
BEIS,Companies House,31/08/2016,PC's                          ,IT Services                   ,MISCO                                   ,"13,749.50",562564
BEIS,Companies House,31/08/2016,PC's                          ,IT Services                   ,MISCO                                   ,999.90,562567
BEIS,Companies House,23/08/2016,Postage Costs,Communications                ,A McLay & Company Ltd                   ,"1,669.66",561841
BEIS,Companies House,08/08/2016,Postage Costs,Communications                ,A McLay & Company Ltd                   ,"2,785.22",561882
BEIS,Companies House,15/08/2016,Postage Costs,Communications                ,A McLay & Company Ltd                   ,"1,087.83",561890
BEIS,Companies House,18/08/2016,Postage Costs,Communications                ,A McLay & Company Ltd                   ,798.58,562234
BEIS,Companies House,18/08/2016,Postage Costs,Communications                ,A McLay & Company Ltd                   ,"3,534.71",562236
BEIS,Companies House,18/08/2016,Postage Costs,Communications                ,A McLay & Company Ltd                   ,"2,786.22",562237
BEIS,Companies House,17/08/2016,Postage Costs,Communications                ,A McLay & Company Ltd                   ,"1,669.66",562241
BEIS,Companies House,17/08/2016,Postage Costs,Communications                ,A McLay & Company Ltd                   ,"2,051.75",562242
BEIS,Companies House,02/08/2016,Postage Costs,Customer Operations Team      ,Royal Mail                              ,"10,333.47",561722
BEIS,Companies House,08/08/2016,Postage Costs,Customer Operations Team      ,Royal Mail                              ,"7,841.36",561912
BEIS,Companies House,23/08/2016,Postage Costs,Customer Operations Team      ,Royal Mail                              ,"11,331.34",562373
BEIS,Companies House,23/08/2016,Postage Costs,Customer Operations Team      ,Royal Mail                              ,"10,046.01",562398
BEIS,Companies House,31/08/2016,Postage Costs,Customer Operations Team      ,Royal Mail                              ,"9,716.75",562568
BEIS,Companies House,23/08/2016,Postage Costs,Edinburgh                     ,Royal Mail                              ,"1,240.04",562365
BEIS,Companies House,26/08/2016,Postage Costs,Northern Ireland              ,Neopost Limited                         ,500.00,562571
BEIS,Companies House,23/08/2016,Print and Mailing Contract    ,Procurement                   ,A McLay & Company Ltd                   ,"1,077.99",562367
BEIS,Companies House,23/08/2016,Print and Mailing Contract    ,Procurement                   ,A McLay & Company Ltd                   ,"1,605.95",562368
BEIS,Companies House,23/08/2016,Print and Mailing Contract    ,Procurement                   ,A McLay & Company Ltd                   ,"1,892.63",562369
BEIS,Companies House,23/08/2016,Print and Mailing Contract    ,Procurement                   ,A McLay & Company Ltd                   ,"1,148.13",562370
BEIS,Companies House,23/08/2016,Print and Mailing Contract    ,Procurement                   ,A McLay & Company Ltd                   ,"1,862.46",562482
BEIS,Companies House,18/08/2016,Print and Mailing Contract    ,Procurement                   ,WILLIAMS LEA                            ,"273,395.93",562253
BEIS,Companies House,08/08/2016,Print and Mailing Contract    ,Registry Integrity Team       ,A McLay & Company Ltd                   ,"1,560.77",561881
BEIS,Companies House,08/08/2016,Print and Mailing Contract    ,Registry Integrity Team       ,A McLay & Company Ltd                   ,970.60,561889
BEIS,Companies House,17/08/2016,Print and Mailing Contract    ,Registry Integrity Team       ,A McLay & Company Ltd                   ,"1,932.52",562229
BEIS,Companies House,17/08/2016,Print and Mailing Contract    ,Registry Integrity Team       ,A McLay & Company Ltd                   ,"1,266.18",562230
BEIS,Companies House,17/08/2016,Print and Mailing Contract    ,Registry Integrity Team       ,A McLay & Company Ltd                   ,957.57,562231
BEIS,Companies House,17/08/2016,Print and Mailing Contract    ,Registry Integrity Team       ,A McLay & Company Ltd                   ,649.62,562233
BEIS,Companies House,08/08/2016,Print-Guidance book.&st. forms,Procurement                   ,A McLay & Company Ltd                   ,"2,630.00",561878
BEIS,Companies House,10/08/2016,Professional Fees             ,Health and Wellbeing          ,British Standards Institute             ,949.00,561945
BEIS,Companies House,11/08/2016,Professional Fees             ,IT Services                   ,DEVOPS GUYS LIMITED                     ,"2,400.00",561968
BEIS,Companies House,04/08/2016,Professional Fees             ,IT Services                   ,Gradian Systems                         ,"1,195.00",561707
BEIS,Companies House,19/08/2016,Professional Fees             ,IT Services                   ,Risual Limited                          ,"4,750.00",562031
BEIS,Companies House,19/08/2016,Professional Fees             ,IT Services                   ,Risual Limited                          ,"5,250.00",562297
BEIS,Companies House,31/08/2016,Professional Fees             ,IT Services                   ,Risual Limited                          ,"1,900.00",562586
BEIS,Companies House,23/08/2016,Professional Fees             ,Software Engineering          ,DOCUSIGN                                ,"2,000.00",562374
BEIS,Companies House,11/08/2016,Publication & prom Literature ,Communications                ,A McLay & Company Ltd                   ,"1,700.00",561962
BEIS,Companies House,11/08/2016,Publication & prom Literature ,Communications                ,WILLIAMS LEA                            ,"4,754.50",561723
BEIS,Companies House,11/08/2016,Publication & prom Literature ,Communications                ,WILLIAMS LEA                            ,"4,052.00",561724
BEIS,Companies House,11/08/2016,Publication & prom Literature ,Product,WILLIAMS LEA                            ,"5,995.00",559789
BEIS,Companies House,25/08/2016,Recruitment Expenses          ,HR Service delivery           ,BURNS SHEEHAN                           ,"9,000.00",562389
BEIS,Companies House,18/08/2016,Rolling Maint.&minor contracts,Building Services             ,A McLay & Company Ltd                   ,540.00,562298
BEIS,Companies House,25/08/2016,Security                      ,Accounting                    ,Loomis Uk Ltd                           ,676.47,562519
BEIS,Companies House,04/08/2016,Security                      ,Building Services             ,Department for Business Innovation Skill,"30,155.52",561749
BEIS,Companies House,31/08/2016,Security                      ,Building Services             ,Department for Business Innovation Skill,"30,155.52",562582
BEIS,Companies House,10/08/2016,Software Licence              ,IT Services                   ,Computacenter (GCAT)                    ,"3,667.20",561709
BEIS,Companies House,25/08/2016,Software Licence              ,IT Services                   ,Computacenter (GCAT)                    ,"46,007.36",562521
BEIS,Companies House,17/08/2016,Subscriptions                 ,Accounting                    ,LexisNexis                              ,"1,050.00",562218
BEIS,Companies House,11/08/2016,T and S for usability project ,Product,PEOPLE FOR RESEARCH                     ,"1,575.00",561965
BEIS,Companies House,11/08/2016,T and S for usability project ,Product,PEOPLE FOR RESEARCH                     ,900.00,561966
BEIS,Companies House,08/08/2016,Taxi - staff                  ,All Areas,Premier Cars (Cardiff) Ltd              ,"2,559.80",561879
BEIS,Companies House,02/08/2016,Telephone Costs,Procurement                   ,British Telecom PLC                     ,"34,134.00",561633
BEIS,Companies House,02/08/2016,Telephone Costs,Procurement                   ,British Telecom PLC                     ,"1,623.04",561714
BEIS,Companies House,25/08/2016,Telephone Costs,Procurement                   ,British Telecom PLC                     ,"1,623.04",562516
BEIS,Companies House,31/08/2016,TFM Cost Stream 2             ,Building Services             ,Department for Business Innovation Skill,"30,961.75",562587
BEIS,Companies House,04/08/2016,TFM Management fees           ,Building Services             ,Department for Business Innovation Skill,"10,402.81",561749
BEIS,Companies House,31/08/2016,TFM Management fees           ,Building Services             ,Department for Business Innovation Skill,"10,406.87",562582
BEIS,Companies House,17/08/2016,Training External             ,Training                      ,NICHOLSON MCBRIDE LIMITED               ,"1,500.00",562238
BEIS,Companies House,23/08/2016,Training External             ,Training                      ,PDP,"1,095.00",562434
BEIS,Companies House,31/08/2016,Training External             ,Training                      ,QA Ltd                                  ,"4,400.00",562572
BEIS,Companies House,31/08/2016,Training External             ,Training                      ,QA Ltd                                  ,"10,050.00",562573
BEIS,Companies House,31/08/2016,Training External             ,Training                      ,QA Ltd                                  ,"4,400.00",562700
BEIS,Companies House,31/08/2016,Training External             ,Training                      ,QA Ltd                                  ,"10,050.00",562701
BEIS,Companies House,15/08/2016,Training External             ,Training                      ,RUTH STEGGLES THE FRESH AIR COACH       ,900.00,562139
BEIS,Companies House,15/08/2016,Training External             ,Training                      ,RUTH STEGGLES THE FRESH AIR COACH       ,"1,200.00",562190
BEIS,Companies House,04/08/2016,Training External             ,Training                      ,THEATRE AND LTD                         ,"3,778.80",561715
BEIS,Companies House,19/08/2016,Training ISD                  ,Training                      ,BITESIZE COMPUTER TRAINING LTD          ,"2,800.00",562296
BEIS,Companies House,08/08/2016,Training ISD                  ,Training                      ,SOLUTIONS DEVELOPED LTD                 ,"2,040.00",561880
BEIS,Companies House,18/08/2016,Translation                   ,Strategy & Policy             ,FCO Services  Translation & Interpreting,"1,405.16",562287
BEIS,Companies House,10/08/2016,Water                         ,Building Services             ,Dwr Cymru Welsh Water                   ,"2,516.84",561913
BEIS,Companies House,31/08/2016,Wood Pellets                  ,Building Services             ,Balcas Timber Ltd                       ,"3,608.40",562583
